fUSD/lending_fUSD_20240804
["ID","MTS","AMOUNT","RATE_DAILY","PERIOD"]
[334172145,1722807051656,-637.6,0.00023013,9]
[334172146,1722807051665,-1498.76,0.00023013,9]
[334172147,1722807051675,-581.46,0.00023013,9]
[334172148,1722807051684,-1040.71,0.00023013,9]
[334172149,1722807051693,-621.0,0.00023013,9]
[334172150,1722807051703,-500.0,0.00023013,9]
[334172151,1722807051712,-500.0,0.00023013,9]
[334172152,1722807051722,-500.9848009,0.00023013,9]
[334172153,1722807051731,-688.0,0.00023013,9]
[334172154,1722807051740,-500.0,0.00023013,9]
[334172155,1722807051749,-500.0,0.00023013,9]
[334172156,1722807051766,-500.0,0.00023013,9]
[334172157,1722807051775,-500.0,0.00023013,9]
[334172158,1722807051855,-500.0,0.00023013,9]
[334172159,1722807051865,-830.23,0.00023013,9]
[334172160,1722807051875,-500.0,0.00023013,9]
[334172161,1722807051884,-500.0,0.00023013,9]
[334172162,1722807051894,-500.0,0.00023013,9]
[334172163,1722807051903,-500.0,0.00023013,9]
[334172164,1722807051912,-500.0,0.00023013,9]
[334172165,1722807051921,-500.0,0.00023013,9]
[334172166,1722807051935,-500.0,0.00023013,9]
[334172167,1722807051944,-543.44,0.00023013,9]
[334172168,1722807051953,-500.0,0.00023013,9]
[334172169,1722807051962,-564.74,0.00023013,9]
[334172170,1722807051973,-500.0,0.00023013,9]
[334172171,1722807051982,-500.0,0.00023013,9]
[334172172,1722807051992,-500.0,0.00023013,9]
[334172173,1722807052002,-858.29,0.00023013,9]
[334172174,1722807052012,-1053.8,0.00023013,9]
[334172175,1722807052022,-963.74,0.00023013,9]
[334172176,1722807052031,-500.0,0.00023013,9]
[334172177,1722807052041,-500.0,0.00023013,9]
[334172178,1722807052050,-593.63,0.00023013,9]
[334172179,1722807052059,-723.44,0.00023013,9]
[334172180,1722807052068,-500.0,0.00023013,9]
[334172181,1722807052077,-500.0,0.00023013,9]
[334172182,1722807052086,-561.46,0.00023013,9]
[334172183,1722807052095,-982.95,0.00023013,9]
[334172184,1722807052104,-500.0,0.00023013,9]
[334172185,1722807052114,-500.0,0.00023013,9]
[334172186,1722807052123,-500.0,0.00023013,9]
[334172187,1722807052132,-272.62,0.00023013,9]
[334172188,1722807052141,-500.0,0.00023013,9]
[334172189,1722807052151,-500.0,0.00023013,9]
[334172190,1722807052160,-500.0,0.00023013,9]
[334172191,1722807052169,-604.6,0.00023013,9]
[334172192,1722807052177,-853.51,0.00023013,9]
[334172193,1722807052186,-500.0,0.00023013,9]
[334172194,1722807052195,-500.0,0.00023013,9]
[334172195,1722807052204,-835.25,0.00023013,9]
[334172196,1722807052214,-1296.67,0.00023013,9]
[334172197,1722807052222,-500.0,0.00023013,9]
[334172198,1722807052232,-697.06,0.00023013,9]
[334172199,1722807052241,-500.0,0.00023013,9]
[334172200,1722807052250,-928.29,0.00023013,9]
[334172201,1722807052268,-500.0,0.00023013,9]
[334172202,1722807052278,-1887.21,0.00023013,9]
[334172203,1722807052287,-500.0,0.00023013,9]
[334172204,1722807052296,-500.0,0.00023013,9]
[334172205,1722807052305,-500.0,0.00023013,9]
[334172206,1722807052315,-917.56,0.00023013,9]
[334172207,1722807052324,-1022.47,0.00023013,9]
[334172208,1722807052333,-500.0,0.00023013,9]
[334172209,1722807052342,-1006.9,0.00023013,9]
[334172210,1722807052351,-500.0,0.00023013,9]
[334172211,1722807052360,-862.12,0.00023013,9]
[334172212,1722807052374,-867.75,0.00023013,9]
[334172213,1722807052383,-500.0,0.00023013,9]
[334172214,1722807052392,-500.0,0.00023013,9]
[334172215,1722807052402,-500.0,0.00023013,9]
[334172216,1722807052411,-1321.28,0.00023013,9]
[334172217,1722807052421,-500.0,0.00023013,9]
[334172218,1722807052430,-1230.72,0.00023013,9]
[334172219,1722807052439,-500.0,0.00023013,9]
[334172220,1722807052448,-826.25,0.00023013,9]
[334172221,1722807052458,-500.0,0.00023013,9]
[334172222,1722807052467,-1081.77,0.00023013,9]
[334172223,1722807052476,-500.0,0.00023013,9]
[334172224,1722807052485,-500.0,0.00023013,9]
[334172225,1722807052495,-500.0,0.00023013,9]
[334172226,1722807052505,-500.0,0.00023013,9]
[334172227,1722807052514,-641.11,0.00023013,9]
[334172228,1722807052524,-801.46,0.00023013,9]
[334172229,1722807052533,-793.08,0.00023013,9]
[334172230,1722807052543,-500.0,0.00023013,9]
[334172231,1722807052552,-500.0,0.00023013,9]
[334172232,1722807052562,-500.0,0.00023013,9]
[334172233,1722807052571,-343.55169672,0.00023013,9]
[334172234,1722807052580,-500.0,0.00023013,9]
[334172235,1722807052589,-2336.05,0.00023013,9]
[334172236,1722807052599,-500.0,0.00023013,9]
[334172237,1722807052608,-1788.69,0.00023013,9]
[334172238,1722807052617,-500.0,0.00023013,9]
[334172239,1722807052626,-500.0,0.00023013,9]
[334172240,1722807052636,-1039.27,0.00023013,9]
[334172241,1722807052645,-13624.91,0.00023013,9]
[334172242,1722807052655,-25349.22,0.00023013,9]
[334172243,1722807052664,-500.0,0.00023013,9]
[334172244,1722807052673,-500.0,0.00023013,9]
[334172245,1722807052683,-800.42,0.00023013,9]
[334172246,1722807052693,-885.39,0.00023013,9]
[334172247,1722807052702,-500.0,0.00023013,9]
[334172248,1722807052711,-500.0,0.00023013,9]
[334172249,1722807052721,-500.0,0.00023013,9]
[334172250,1722807052730,-2083.28,0.00023013,9]
[334172251,1722807052739,-1284.69,0.00023013,9]
[334172252,1722807052748,-1555.66,0.00023013,9]
[334172253,1722807052759,-500.0,0.00023013,9]
[334172254,1722807052768,-557.47,0.00023013,9]
[334172255,1722807052776,-1301.33,0.00023013,9]
[334172256,1722807052785,-500.0,0.00023013,9]
[334172257,1722807052795,-583.08787084,0.00023013,9]
[334172258,1722807052804,-12740.42,0.00023013,9]
[334172259,1722807052813,-500.0,0.00023013,9]
[334172260,1722807052823,-500.0,0.00023013,9]
[334172261,1722807052834,-500.0,0.00023013,9]
[334172262,1722807052844,-500.0,0.00023013,9]
[334172263,1722807052855,-500.0,0.00023013,9]
[334172264,1722807052865,-1213.72,0.00023013,9]
[334172265,1722807052874,-621.18,0.00023013,9]
[334172266,1722807052883,-1269.25,0.00023013,9]
[334172267,1722807052893,-903.24,0.00023013,9]
[334172268,1722807052902,-4703.09,0.00023013,9]
[334172269,1722807052911,-500.0,0.00023013,9]
[334172270,1722807052922,-500.0,0.00023013,9]
[334172271,1722807052934,-500.0,0.00023013,9]
[334172272,1722807052943,-500.0,0.00023013,9]
[334172273,1722807052952,-1398.52,0.00023013,9]
[334172274,1722807052963,-500.0,0.00023013,9]
[334172275,1722807052972,-1164.87,0.00023013,9]
[334172276,1722807052981,-1451.12,0.00023013,9]
[334172277,1722807052991,-500.0,0.00023013,9]
[334172278,1722807053002,-500.0,0.00023013,9]
[334172279,1722807053011,-585.42,0.00023013,9]
[334172280,1722807053020,-500.0,0.00023013,9]
[334172281,1722807053029,-1313.3,0.00023013,9]
[334172282,1722807053038,-500.0,0.00023013,9]
[334172283,1722807053047,-850.9,0.00023013,9]
[334172284,1722807053056,-1192.24,0.00023013,9]
[334172285,1722807053066,-500.0,0.00023013,9]
[334172286,1722807053075,-5125.77,0.00023013,9]
[334172287,1722807053084,-500.0,0.00023013,9]
[334172288,1722807053094,-701.74,0.00023013,9]
[334172289,1722807053103,-500.0,0.00023013,9]
[334172290,1722807053112,-500.0,0.00023013,9]
[334172291,1722807053122,-11505.71,0.00023013,9]
[334172292,1722807053131,-1677.73,0.00023013,9]
[334172293,1722807053140,-842.92,0.00023013,9]
[334172294,1722807053150,-1770.01,0.00023013,9]
[334172295,1722807053159,-500.0,0.00023013,9]
[334172296,1722807053168,-500.0,0.00023013,9]
[334172297,1722807053177,-500.0,0.00023013,9]
[334172298,1722807053187,-915.53,0.00023013,9]
[334172299,1722807053196,-507.16,0.00023013,9]
[334172300,1722807053206,-1058.08,0.00023013,9]
[334172301,1722807053216,-500.0,0.00023013,9]
[334172302,1722807053225,-500.0,0.00023013,9]
[334172303,1722807053235,-2835.74,0.00023013,9]
[334172304,1722807053244,-500.0,0.00023013,9]
[334172305,1722807053254,-3530.94,0.00023013,9]
[334172306,1722807053264,-503.31,0.00023013,9]
[334172307,1722807053273,-1332.84,0.00023013,9]
[334172308,1722807053283,-1309.74,0.00023013,9]
[334172309,1722807053292,-500.0,0.00023013,9]
[334172310,1722807053301,-645.69,0.00023013,9]
[334172311,1722807053311,-2893.04,0.00023013,9]
[334172312,1722807053321,-500.0,0.00023013,9]
[334172313,1722807053330,-742.13,0.00023013,9]
[334172314,1722807053340,-500.0,0.00023013,9]
[334172315,1722807053349,-500.0,0.00023013,9]
[334172316,1722807053359,-536.34,0.00023013,9]
[334172317,1722807053368,-500.0,0.00023013,9]
[334172318,1722807053378,-1277.58,0.00023013,9]
[334172319,1722807053388,-1563.24,0.00023013,9]
[334172320,1722807053398,-500.0,0.00023013,9]
[334172321,1722807053407,-880.02,0.00023013,9]
[334172322,1722807053417,-1427.05,0.00023013,9]
[334172323,1722807053427,-6328.24,0.00023013,9]
[334172324,1722807053436,-1586.81,0.00023013,9]
[334172325,1722807053446,-500.0,0.00023013,9]
[334172326,1722807053456,-500.0,0.00023013,9]
[334172327,1722807053465,-500.0,0.00023013,9]
[334172328,1722807053475,-500.0,0.00023013,9]
[334172329,1722807053485,-500.0,0.00023013,9]
[334172330,1722807053494,-500.0,0.00023013,9]
[334172331,1722807053505,-500.0,0.00023013,9]
[334172332,1722807053514,-500.0,0.00023013,9]
[334172333,1722807053524,-1862.87,0.00023013,9]
[334172334,1722807053533,-500.0,0.00023013,9]
[334172335,1722807053543,-1385.23,0.00023013,9]
[334172336,1722807053552,-500.0,0.00023013,9]
[334172337,1722807053562,-500.0,0.00023013,9]
[334172338,1722807053571,-500.0,0.00023013,9]
[334172339,1722807053581,-1045.17,0.00023013,9]
[334172340,1722807053590,-1056.54,0.00023013,9]
[334172341,1722807053599,-500.0,0.00023013,9]
[334172342,1722807053608,-1236.27,0.00023013,9]
[334172343,1722807053617,-500.0,0.00023013,9]
[334172344,1722807053626,-500.0,0.00023013,9]
[334172345,1722807053636,-500.0,0.00023013,9]
[334172346,1722807053645,-949.57,0.00023013,9]
[334172347,1722807053655,-500.0,0.00023013,9]
[334172348,1722807053664,-1707.36,0.00023013,9]
[334172349,1722807053674,-1373.58,0.00023013,9]
[334172350,1722807053683,-620.3,0.00023013,9]
[334172351,1722807053692,-500.0,0.00023013,9]
[334172352,1722807053701,-1060.19,0.00023013,9]
[334172353,1722807053710,-400.0,0.00023013,9]
[334172354,1722807053720,-2458.83,0.00023013,9]
[334172355,1722807053729,-500.0,0.00023013,9]
[334172356,1722807053739,-500.0,0.00023013,9]
[334172357,1722807053749,-1756.09,0.00023013,9]
[334172358,1722807053759,-1354.87,0.00023013,9]
[334172359,1722807053768,-500.0,0.00023013,9]
[334172360,1722807053777,-500.0,0.00023013,9]
[334172361,1722807053787,-500.0,0.00023013,9]
[334172362,1722807053796,-2077.82,0.00023013,9]
[334172363,1722807053806,-4260.93,0.00023013,9]
[334172364,1722807053815,-1390.31,0.00023013,9]
[334172365,1722807053825,-500.0,0.00023013,9]
[334172366,1722807053835,-500.0,0.00023013,9]
[334172367,1722807053845,-500.0,0.00023013,9]
[334172368,1722807053855,-445.88657126,0.00023013,9]
[334172369,1722807053864,-500.0,0.00023013,9]
[334172370,1722807053873,-549.58,0.00023013,9]
[334172371,1722807053882,-500.0,0.00023013,9]
[334172372,1722807053892,-500.0,0.00023013,9]
[334172373,1722807053901,-1353.732053,0.00023013,7]
[334172374,1722807053911,-1528.52,0.00023013,9]
[334172375,1722807053921,-1281.96,0.00023013,9]
[334172376,1722807053936,-1744.84,0.00023013,9]
[334172377,1722807053945,-1120.67,0.00023013,9]
[334172378,1722807053954,-500.0,0.00023013,9]
[334172379,1722807053963,-500.0,0.00023013,9]
[334172380,1722807053972,-1353.732053,0.00023013,7]
[334172381,1722807053982,-1742.47,0.00023013,9]
[334172382,1722807053991,-2061.5,0.00023013,9]
[334172383,1722807054001,-1051.86,0.00023013,9]
[334172384,1722807054013,-750.57,0.00023013,9]
[334172385,1722807054022,-622.33,0.00023013,9]
[334172386,1722807054031,-500.0,0.00023013,9]
[334172387,1722807054041,-500.0,0.00023013,9]
[334172388,1722807054051,-500.0,0.00023013,9]
[334172389,1722807054059,-930.99,0.00023013,9]
[334172390,1722807054068,-500.0,0.00023013,9]
[334172391,1722807054078,-500.0,0.00023013,9]
[334172392,1722807054086,-500.0,0.00023013,9]
[334172393,1722807054096,-500.0,0.00023013,9]
[334172394,1722807054105,-500.0,0.00023013,9]
[334172395,1722807054114,-653.29,0.00023013,9]
[334172396,1722807054124,-998.61,0.00023013,9]
[334172397,1722807054133,-151.0,0.00023013,7]
[334172398,1722807054142,-1809.57,0.00023013,9]
[334172399,1722807054151,-500.0,0.00023013,9]
[334172400,1722807054160,-1237.44,0.00023013,9]
[334172401,1722807054170,-1361.95,0.00023013,9]
[334172402,1722807054179,-500.0,0.00023013,9]
[334172403,1722807054188,-2266.77,0.00023013,9]
[334172404,1722807054197,-500.0,0.00023013,9]
[334172405,1722807054206,-500.0,0.00023013,9]
[334172406,1722807054215,-500.0,0.00023013,9]
[334172407,1722807054224,-1031.03,0.00023013,9]
[334172408,1722807054234,-500.0,0.00023013,9]
[334172409,1722807054243,-500.0,0.00023013,9]
[334172410,1722807054252,-1024.37,0.00023013,9]
[334172411,1722807054261,-596.76,0.00023013,9]
[334172412,1722807054270,-1678.29,0.00023013,9]
[334172413,1722807054280,-2525.05,0.00023013,9]
[334172414,1722807054292,-1173.34,0.00023013,9]
[334172415,1722807054301,-862.69,0.00023013,9]
[334172416,1722807054311,-500.0,0.00023013,9]
[334172417,1722807054320,-2869.53,0.00023013,9]
[334172418,1722807054329,-1131.8,0.00023013,9]
[334172419,1722807054338,-1911.96,0.00023013,9]
[334172420,1722807054347,-151.0,0.00023013,7]
[334172421,1722807054356,-1984.24,0.00023013,9]
[334172422,1722807054365,-548.42,0.00023013,9]
[334172423,1722807054374,-584.81793954,0.00023013,9]
[334172424,1722807054383,-500.0,0.00023013,9]
[334172425,1722807054393,-793.04,0.00023013,9]
[334172426,1722807054402,-500.0,0.00023013,9]
[334172427,1722807054411,-500.0,0.00023013,9]
[334172428,1722807054422,-500.0,0.00023013,9]
[334172429,1722807054431,-500.0,0.00023013,9]
[334172430,1722807054440,-500.0,0.00023013,9]
[334172431,1722807054450,-1371.81,0.00023013,9]
[334172432,1722807054459,-630.46,0.00023013,9]
[334172433,1722807054469,-500.0,0.00023013,9]
[334172434,1722807054478,-500.0,0.00023013,9]
[334172435,1722807054487,-5991.37,0.00023013,9]
[334172436,1722807054496,-500.0,0.00023013,9]
[334172437,1722807054507,-500.0,0.00023013,9]
[334172438,1722807054516,-2205.48,0.00023013,9]
[334172439,1722807054526,-1224.15,0.00023013,9]
[334172440,1722807054536,-967.89,0.00023013,9]
[334172441,1722807054545,-2199.77,0.00023013,9]
[334172442,1722807054554,-1223.27,0.00023013,9]
[334172443,1722807054563,-1057.6,0.00023013,9]
[334172444,1722807054572,-873.16,0.00023013,9]
[334172445,1722807054582,-500.0,0.00023013,9]
[334172446,1722807054591,-500.0,0.00023013,9]
[334172447,1722807054601,-827.61,0.00023013,9]
[334172448,1722807054610,-1232.05,0.00023013,9]
[334172449,1722807054619,-732.24,0.00023013,9]
[334172450,1722807054628,-500.0,0.00023013,9]
[334172451,1722807054638,-1066.75,0.00023013,9]
[334172452,1722807054648,-5555.06,0.00023013,9]
[334172453,1722807054657,-500.0,0.00023013,9]
[334172454,1722807054667,-970.28,0.00023013,9]
[334172455,1722807054676,-1594.16,0.00023013,9]
[334172456,1722807054686,-561.37,0.00023013,9]
[334172457,1722807054695,-12569.26,0.00023013,9]
[334172458,1722807054704,-500.0,0.00023013,9]
[334172459,1722807054713,-1645.37,0.00023013,9]
[334172460,1722807054723,-500.0,0.00023013,9]
[334172461,1722807054732,-500.0,0.00023013,9]
[334172462,1722807054741,-1669.83,0.00023013,9]
[334172463,1722807054750,-500.0,0.00023013,9]
[334172464,1722807054760,-2620.03,0.00023013,9]
[334172465,1722807054769,-500.0,0.00023013,9]
[334172466,1722807054779,-500.0,0.00023013,9]
[334172467,1722807054788,-500.0,0.00023013,9]
[334172468,1722807054797,-668.24,0.00023013,9]
[334172469,1722807054806,-3460.33,0.00023013,9]
[334172470,1722807054815,-500.0,0.00023013,9]
[334172471,1722807054824,-2374.64,0.00023013,9]
[334172472,1722807054833,-1665.28,0.00023013,9]
[334172473,1722807054842,-1419.39,0.00023013,9]
[334172474,1722807054851,-500.0,0.00023013,9]
[334172475,1722807054861,-500.0,0.00023013,9]
[334172476,1722807054871,-500.0,0.00023013,9]
[334172477,1722807054880,-1670.88,0.00023013,9]
[334172478,1722807054890,-1567.19,0.00023013,9]
[334172479,1722807054899,-151.0,0.00023013,7]
[334172480,1722807054909,-151.0,0.00023013,7]
[334172481,1722807054919,-610.76,0.00023013,9]
[334172482,1722807054933,-500.0,0.00023013,9]
[334172483,1722807054943,-500.0,0.00023013,9]
[334172484,1722807054952,-845.04,0.00023013,9]
[334172485,1722807054961,-1072.93,0.00023013,9]
[334172486,1722807054971,-739.83,0.00023013,9]
[334172487,1722807054980,-1071.06,0.00023013,9]
[334172488,1722807054989,-500.0,0.00023013,9]
[334172489,1722807055000,-1271.27,0.00023013,9]
[334172490,1722807055010,-841.02,0.00023013,9]
[334172491,1722807055019,-500.0,0.00023013,9]
[334172492,1722807055028,-2169.87,0.00023013,9]
[334172493,1722807055037,-500.0,0.00023013,9]
[334172494,1722807055047,-500.0,0.00023013,9]
[334172495,1722807055056,-2475.05,0.00023013,9]
[334172496,1722807055065,-535.04,0.00023013,9]
[334172497,1722807055074,-3728.1,0.00023013,9]
[334172498,1722807055083,-2716.79,0.00023013,9]
[334172499,1722807055092,-500.0,0.00023013,9]
[334172500,1722807055102,-500.0,0.00023013,9]
[334172501,1722807055111,-821.31,0.00023013,9]
[334172502,1722807055120,-7242.45,0.00023013,9]
[334172503,1722807055130,-1127.16,0.00023013,9]
[334172504,1722807055139,-1095.55,0.00023013,9]
[334172505,1722807055148,-500.0,0.00023013,9]
[334172506,1722807055158,-430.58920988,0.00023013,9]
[334172507,1722807055168,-500.0,0.00023013,9]
[334172508,1722807055177,-1448.13,0.00023013,9]
[334172509,1722807055187,-500.0,0.00023013,9]
[334172510,1722807055196,-265.3,0.00023013,9]
[334172511,1722807055206,-1021.0,0.00023064,2]
[334172512,1722807055216,-152.75549015,0.00023068,2]
[334172513,1722807055226,-150.0,0.00023068,4]
[334172514,1722807055235,-500.0,0.00023084,9]
[334172515,1722807055244,-169.59963872,0.00023092,2]
[334172516,1722807055255,-500.0,0.00023094,9]
[334172517,1722807055268,-300.0,0.00023095,9]
[334172518,1722807055277,-500.0,0.00023095,9]
[334172519,1722807055286,-500.0,0.00023095,9]
[334172520,1722807055295,-500.0,0.00023095,9]
[334172521,1722807055304,-264.23455718,0.00023095,9]
[334172522,1722807055314,-500.0,0.00023095,9]
[334172523,1722807055323,-500.0,0.00023095,9]
[334172524,1722807055333,-500.0,0.00023095,9]
[334172525,1722807055342,-500.0,0.00023095,9]
[334172526,1722807055352,-500.0,0.00023095,9]
[334172527,1722807055361,-500.0,0.00023095,9]
[334172528,1722807055371,-500.0,0.00023095,9]
[334172529,1722807055380,-500.0,0.00023095,9]
[334172530,1722807055390,-500.0,0.00023095,9]
[334172531,1722807055399,-680.54,0.00023095,9]
[334172532,1722807055408,-500.0,0.00023095,9]
[334172533,1722807055418,-500.0,0.00023095,9]
[334172534,1722807055427,-500.0,0.00023095,9]
[334172535,1722807055436,-500.0,0.00023095,9]
[334172536,1722807055445,-500.0,0.00023095,9]
[334172537,1722807055455,-500.0,0.00023095,9]
[334172538,1722807055464,-500.0,0.00023095,9]
[334172539,1722807055474,-500.0,0.00023095,9]
[334172540,1722807055483,-500.0,0.00023095,9]
[334172541,1722807055492,-500.0,0.00023095,9]
[334172542,1722807055502,-500.0,0.00023095,9]
[334172543,1722807055511,-500.0,0.00023095,9]
[334172544,1722807055521,-500.0,0.00023095,9]
[334172545,1722807055530,-500.0,0.00023095,9]
[334172546,1722807055539,-500.0,0.00023095,9]
[334172547,1722807055548,-13.12852531,0.00023095,9]
[334172548,1722807056125,-486.87147469,0.00023095,9]
[334172549,1722807056135,-500.0,0.00023095,9]
[334172550,1722807056144,-500.0,0.00023095,9]
[334172551,1722807056153,-500.0,0.00023095,9]
[334172552,1722807056163,-591.12,0.00023095,9]
[334172553,1722807056172,-844.91401667,0.00023095,9]
[334172554,1722807056184,-222.93598333,0.00023095,9]
[334172555,1722807056194,-500.0,0.00023095,9]
[334172556,1722807056203,-500.0,0.00023095,9]
[334172557,1722807056212,-500.0,0.00023095,9]
[334172558,1722807056222,-500.0,0.00023095,9]
[334172559,1722807056231,-500.0,0.00023095,9]
[334172560,1722807056241,-479.47912172,0.00023095,9]
[334172561,1722807056262,-153.867246,0.00023013,9]
[334172562,1722807056272,-246.02087828,0.00023095,9]
[334172563,1722807056282,-532.9517681,0.00023095,9]
[334172564,1722807056291,-707.36,0.00023095,9]
[334172565,1722807056301,-500.0,0.00023095,9]
[334172566,1722807056310,-500.0,0.00023095,9]
[334172567,1722807056320,-500.0,0.00023095,9]
[334172568,1722807056330,-520.48,0.00023095,9]
[334172569,1722807056340,-500.0,0.00023095,9]
[334172570,1722807056350,-500.0,0.00023095,9]
[334172571,1722807056359,-500.0,0.00023095,9]
[334172572,1722807056369,-500.0,0.00023095,9]
[334172573,1722807056378,-500.0,0.00023095,9]
[334172574,1722807056388,-500.0,0.00023095,9]
[334172575,1722807056397,-196.86144491,0.00023095,9]
[334172576,1722807056407,-500.0,0.00023095,9]
[334172577,1722807056416,-500.0,0.00023095,9]
[334172578,1722807056426,-553.42,0.00023095,9]
[334172579,1722807056436,-500.0,0.00023095,9]
[334172580,1722807056446,-500.0,0.00023095,9]
[334172581,1722807056455,-500.0,0.00023095,9]
[334172582,1722807056465,-500.0,0.00023095,9]
[334172583,1722807056475,-685.62,0.00023095,9]
[334172584,1722807056484,-500.0,0.00023095,9]
[334172585,1722807056494,-500.0,0.00023095,9]
[334172586,1722807056503,-500.0,0.00023095,9]
[334172587,1722807056513,-500.0,0.00023095,9]
[334172588,1722807056522,-500.0,0.00023095,9]
[334172589,1722807056532,-500.0,0.00023095,9]
[334172590,1722807056541,-500.0,0.00023095,9]
[334172591,1722807056550,-500.0,0.00023095,9]
[334172592,1722807056560,-500.0,0.00023095,9]
[334172593,1722807056570,-803.26,0.00023095,9]
[334172594,1722807056579,-724.96,0.00023095,9]
[334172595,1722807056588,-374.88948137,0.00023095,9]
[334172596,1722807056602,-125.11051863,0.00023095,9]
[334172597,1722807056611,-379.04148137,0.00023095,9]
[334172598,1722807056623,-188.08851863,0.00023095,9]
[334172599,1722807056633,-500.0,0.00023095,9]
[334172600,1722807056643,-500.0,0.00023095,9]
[334172601,1722807056652,-500.0,0.00023095,9]
[334172602,1722807056661,-500.0,0.00023095,9]
[334172603,1722807056671,-500.0,0.00023095,9]
[334172604,1722807056680,-500.0,0.00023095,9]
[334172605,1722807056689,-500.0,0.00023095,9]
[334172606,1722807056698,-500.0,0.00023095,9]
[334172607,1722807056708,-500.0,0.00023095,9]
[334172608,1722807056719,-500.0,0.00023095,9]
[334172609,1722807056728,-500.0,0.00023095,9]
[334172610,1722807056738,-816.16,0.00023095,9]
[334172611,1722807056747,-500.0,0.00023095,9]
[334172612,1722807056758,-500.0,0.00023095,9]
[334172613,1722807056768,-500.0,0.00023095,9]
[334172614,1722807056777,-500.0,0.00023095,9]
[334172615,1722807056788,-500.0,0.00023095,9]
[334172616,1722807056798,-618.1,0.00023095,9]
[334172617,1722807056807,-500.0,0.00023095,9]
[334172618,1722807056818,-500.0,0.00023095,9]
[334172619,1722807056829,-500.0,0.00023095,9]
[334172620,1722807056839,-500.0,0.00023095,9]
[334172621,1722807056849,-500.0,0.00023095,9]
[334172622,1722807056859,-500.0,0.00023095,9]
[334172623,1722807056868,-500.0,0.00023095,9]
[334172624,1722807056878,-500.0,0.00023095,9]
[334172625,1722807056887,-500.0,0.00023095,9]
[334172626,1722807056897,-500.0,0.00023095,9]
[334172627,1722807056906,-500.0,0.00023095,9]
[334172628,1722807056916,-1387.6,0.00023095,9]
[334172629,1722807056929,-500.0,0.00023095,9]
[334172630,1722807056939,-500.0,0.00023095,9]
[334172631,1722807056949,-500.0,0.00023095,9]
[334172632,1722807056958,-500.0,0.00023095,9]
[334172633,1722807056969,-683.96,0.00023095,9]
[334172634,1722807056979,-500.0,0.00023095,9]
[334172635,1722807056990,-928.15,0.00023095,9]
[334172636,1722807057002,-500.0,0.00023095,9]
[334172637,1722807057012,-560.12,0.00023095,9]
[334172638,1722807057022,-500.0,0.00023095,9]
[334172639,1722807057032,-500.0,0.00023095,9]
[334172640,1722807057041,-500.0,0.00023095,9]
[334172641,1722807057050,-500.0,0.00023095,9]
[334172642,1722807057059,-500.0,0.00023095,9]
[334172643,1722807057069,-500.0,0.00023095,9]
[334172644,1722807057078,-500.0,0.00023095,9]